[Event "4NCL Div 1 2018-19"]
[Site "Daventry"]
[Date "2018.11.11"]
[Round "2"]
[White "Milliet, Sophie"]
[Black "Abbas, Daniel"]
[Result "1-0"]
[ECO "B40"]
[WhiteElo "2371"]
[BlackElo "2281"]
[Annotator "NA"]
[PlyCount "39"]
[EventDate "2018.11.10"]
[EventType "team-tourn"]
[EventCountry "GBR"]
[SourceTitle "playchess.com"]
[Source "ChessBase"]
[SourceQuality "1"]
[TimeControl "40/6000+30:3000+30"]

1. e4 {[%emt 0:00:00]} c5 {[%emt 0:00:00]} 2. Nf3 {[%emt 0:00:00]} e6 {[%emt 0:00:00]} 3. b3 {[%emt 0:00:00]} a6 {[%emt 0:00:43]} 4. Bb2 {[%emt 0:00:05]} Nc6 {[%emt 0:00:07]} 5. c4 {[%emt 0:00:22]} Qc7 {[%emt 0:00:11]} 6. g3 {[%emt 0:00:13]} Nf6 {[%emt 0:03:08]} 7. e5 {[%emt 0:00:09]} Ng4 {[%emt 0:01:51]} 8. Qe2 {[%emt 0:00:07]} Be7 {[%emt 0:01:44]} 9. Bh3 {[%emt 0:00:36]} Nh6 {[%emt 0:12:45]} 10. Nc3 {[%emt 0:05:34]} O-O {[%emt 0:12:02]} 11. Ne4 {[%emt 0:00:33]} Kh8 {[%emt 0:13:37]} 12. O-O {[%emt 0:18:08]} b5 {[%emt 0:08:08]} 13. Qe3 {[%emt 0:22:27]} bxc4 {[%emt 0:08:11]} 14. bxc4 {[%emt 0:00:19]} Nb4 {[%emt 0:02:12]} 15. Nf6 {[%emt 0:04:34]} Bb7 {[%emt 0:07:43]} 16. a3 {[%emt 0:04:58]} Qc6 {[%emt 0:01:41]} 17. Bg2 {[%emt 0:08:42]} Nf5 {[%emt 0:09:22]} 18. Qb3 {[%emt 0:02:57]} Nd4 {[%emt 0:02:44]} 19. Bxd4 {[%emt 0:00:00]} cxd4 {[%emt 0:00:05]} 20. Nh5 {[%emt 0:03:00]} 1-0

[Event "4NCL Div 1 2018-19"]
[Site "Daventry"]
[Date "2018.11.11"]
[Round "2"]
[White "Sreeves, Clement"]
[Black "Rudd, Jack"]
[Result "1-0"]
[ECO "C10"]
[WhiteElo "2358"]
[BlackElo "2234"]
[Annotator "NA"]
[PlyCount "41"]
[EventDate "2018.11.10"]
[EventType "team-tourn"]
[EventCountry "GBR"]
[SourceTitle "playchess.com"]
[Source "ChessBase"]
[SourceQuality "1"]
[TimeControl "40/6000+30:3000+30"]

1. e4 {[%emt 0:00:00]} c6 {[%emt 0:00:00]} 2. d4 {[%emt 0:00:00]} d5 {[%emt 0:00:00]} 3. Nc3 {[%emt 0:00:00]} dxe4 {[%emt 0:00:00]} 4. Nxe4 {[%emt 0:00:00]} Nd7 {[%emt 0:00:00]} 5. Ng5 {[%emt 0:00:15]} Ngf6 {[%emt 0:00:00]} 6. Bd3 {[%emt 0:00:25]} e6 {[%emt 0:01:08]} 7. N1f3 {[%emt 0:01:11]} Bd6 {[%emt 0:01:26]} 8. Qe2 {[%emt 0:00:14]} h6 {[%emt 0:01:42]} 9. Ne4 {[%emt 0:00:07]} Nxe4 {[%emt 0:00:10]} 10. Qxe4 {[%emt 0:00:06]} Nf6 {[%emt 0:01:14]} 11. Qe2 {[%emt 0:00:17]} c5 {[%emt 0:01:45]} 12. Bd2 {[%emt 0:15:19]} O-O {[%emt 0:01:48]} 13. dxc5 {[%emt 0:05:52]} Bxc5 {[%emt 0:00:17]} 14. O-O-O {[%emt 0:00:34]} Qb6 {[%emt 0:01:18]} 15. Ne5 {[%emt 0:03:12]} Rd8 {[%emt 0:04:06]} 16. Kb1 {[%emt 0:11:06]} Bd7 {[%emt 0:02:05]} 17. g4 {[%emt 0:07:46]} Nd5 {[%emt 0:03:00]} 18. g5 {[%emt 0:13:31]} Rac8 {[%emt 0:00:41]} 19. gxh6 {[%emt 0:11:12]} g6 {[%emt 0:00:08]} 20. h7+ {[%emt 0:00:55]} Kg7 {[%emt 0:00:16]} 21. h8=Q+ {[%emt 0:00:55]} 1-0

[Event "4NCL Div 1 2018-19"]
[Site "Daventry"]
[Date "2018.11.11"]
[Round "2"]
[White "Kolbus, Dietmar"]
[Black "Webster, David"]
[Result "1-0"]
[ECO "A20"]
[WhiteElo "2305"]
[BlackElo "1964"]
[Annotator "NA"]
[PlyCount "55"]
[EventDate "2018.11.10"]
[EventType "team-tourn"]
[EventCountry "GBR"]
[SourceTitle "playchess.com"]
[Source "ChessBase"]
[SourceQuality "1"]
[TimeControl "40/6000+30:3000+30"]

1. c4 {[%emt 0:00:00]} e5 {[%emt 0:00:00]} 2. Nf3 {[%emt 0:00:00]} Nc6 {[%emt 0:00:00]} 3. d4 {[%emt 0:00:02]} exd4 {[%emt 0:00:00]} 4. Nxd4 {[%emt 0:00:05]} Nxd4 {[%emt 0:00:28]} 5. Qxd4 {[%emt 0:00:08]} Qf6 {[%emt 0:00:12]} 6. Qd3 {[%emt 0:00:34]} Qg6 {[%emt 0:03:04]} 7. e4 {[%emt 0:00:21]} Bb4+ {[%emt 0:01:44]} 8. Bd2 {[%emt 0:01:09]} Bxd2+ {[%emt 0:00:28]} 9. Nxd2 {[%emt 0:00:06]} Ne7 {[%emt 0:03:00]} 10. g3 {[%emt 0:01:57]} d6 {[%emt 0:05:16]} 11. Bg2 {[%emt 0:00:14]} Nc6 {[%emt 0:03:15]} 12. f4 {[%emt 0:00:44]} Bd7 {[%emt 0:10:21]} 13. Qc3 {[%emt 0:01:15]} O-O {[%emt 0:08:33]} 14. O-O {[%emt 0:04:17]} Qh5 {[%emt 0:04:22]} 15. Rf2 {[%emt 0:00:53]} Qa5 {[%emt 0:05:14]} 16. Qxa5 {[%emt 0:06:17]} Nxa5 {[%emt 0:00:14]} 17. Rc1 {[%emt 0:03:12]} Nc6 {[%emt 0:05:46]} 18. a3 {[%emt 0:03:08]} a5 {[%emt 0:13:51]} 19. c5 {[%emt 0:01:40]} dxc5 {[%emt 0:00:37]} 20. Rc3 {[%emt 0:00:05]} c4 21. Rxc4 {[%emt 0:00:32]} b6 {[%emt 0:05:47]} 22. Rc3 {[%emt 0:00:43]} Ra7 {[%emt 0:00:51]} 23. Nf3 {[%emt 0:03:16]} Nd8 {[%emt 0:06:03]} 24. Rd2 {[%emt 0:01:33]} c5 {[%emt 0:06:52]} 25. Rcd3 {[%emt 0:00:46]} f5 {[%emt 0:02:07]} 26. Rxd7 {[%emt 0:00:17]} Rxd7 {[%emt 0:00:03]} 27. Rxd7 {[%emt 0:00:08]} fxe4 {[%emt 0:00:01]} 28. Ng5 {[%emt 0:00:31]} 1-0

[Event "4NCL Div 1 2018-19"]
[Site "Daventry"]
[Date "2018.11.11"]
[Round "2"]
[White "Ciuksyte, Dagne"]
[Black "Adams, Philip"]
[Result "1-0"]
[ECO "A08"]
[WhiteElo "2303"]
[BlackElo "2095"]
[Annotator "NA"]
[PlyCount "111"]
[EventDate "2018.11.10"]
[EventType "team-tourn"]
[EventCountry "GBR"]
[SourceTitle "playchess.com"]
[Source "ChessBase"]
[SourceQuality "1"]
[TimeControl "40/6000+30:3000+30"]

1. e4 {[%emt 0:00:00]} c5 {[%emt 0:00:00]} 2. Nf3 {[%emt 0:00:00]} e6 {[%emt 0:00:00]} 3. d3 {[%emt 0:00:00]} Nc6 {[%emt 0:00:00]} 4. g3 {[%emt 0:00:00]} g6 {[%emt 0:01:15]} 5. Bg2 {[%emt 0:00:33]} Bg7 {[%emt 0:00:10]} 6. O-O {[%emt 0:00:13]} Nge7 {[%emt 0:00:48]} 7. c3 {[%emt 0:00:32]} d5 {[%emt 0:12:13]} 8. Nbd2 {[%emt 0:01:41]} O-O {[%emt 0:02:32]} 9. Re1 {[%emt 0:03:12]} b6 {[%emt 0:44:04]} 10. e5 {[%emt 0:06:54]} Ba6 {[%emt 0:06:49]} 11. Nf1 {[%emt 0:02:23]} h6 {[%emt 0:07:23]} 12. h4 {[%emt 0:03:05]} Rc8 {[%emt 0:03:57]} 13. Bf4 {[%emt 0:03:15]} Nf5 {[%emt 0:10:12]} 14. Qd2 {[%emt 0:04:39]} f6 {[%emt 0:06:24]} 15. g4 {[%emt 0:15:34]} fxe5 {[%emt 0:02:48]} 16. gxf5 {[%emt 0:00:36]} exf4 {[%emt 0:00:06]} 17. Rxe6 {[%emt 0:07:51]} gxf5 {[%emt 0:00:35]} 18. Qxf4 {[%emt 0:10:38]} Qc7 {[%emt 0:01:26]} 19. Qd2 {[%emt 0:04:27]} Rce8 {[%emt 0:04:00]} 20. Rae1 {[%emt 0:05:27]} Qd7 {[%emt 0:02:43]} 21. Rxe8 {[%emt 0:02:35]} Rxe8 {[%emt 0:00:04]} 22. Rxe8+ {[%emt 0:03:13]} Qxe8 {[%emt 0:00:05]} 23. Ng3 {[%emt 0:03:05]} Bc8 {[%emt 0:00:29]} 24. Qf4 {[%emt 0:02:13]} Qf7 {[%emt 0:02:44]} 25. Bh3 {[%emt 0:05:23]} Be6 {[%emt 0:00:58]} 26. Bxf5 {[%emt 0:04:03]} Bxf5 {[%emt 0:00:39]} 27. Nxf5 {[%emt 0:01:44]} Ne7 {[%emt 0:00:30]} 28. Nxe7+ {[%emt 0:02:32]} Qxe7 {[%emt 0:00:05]} 29. Qf5 {[%emt 0:05:15]} Qd6 {[%emt 0:00:13]} 30. h5 {[%emt 0:01:37]} Kh8 {[%emt 0:00:52]} 31. Nh4 {[%emt 0:01:07]} d4 {[%emt 0:00:52]} 32. Qf7 {[%emt 0:00:38]} Qf6 {[%emt 0:00:27]} 33. Ng6+ {[%emt 0:00:10]} Kh7 {[%emt 0:00:06]} 34. Qxf6 {[%emt 0:01:07]} Bxf6 {[%emt 0:00:04]} 35. c4 {[%emt 0:00:12]} Kg7 {[%emt 0:00:28]} 36. Kg2 {[%emt 0:00:54]} a6 {[%emt 0:00:14]} 37. Kf3 {[%emt 0:00:51]} Kf7 {[%emt 0:00:33]} 38. Ke4 {[%emt 0:00:26]} b5 {[%emt 0:01:02]} 39. Kd5 {[%emt 0:00:59]} bxc4 {[%emt 0:00:07]} 40. Kxc4 {[%emt 0:00:07]} Ke6 {[%emt 0:00:41]} 41. Kxc5 {[%emt 0:51:52]} Kf5 {[%emt 0:50:32]} 42. Kd5 {[%emt 0:00:00]} Kg4 {[%emt 0:00:00]} 43. Ke4 {[%emt 0:00:00]} Kxh5 {[%emt 0:00:00]} 44. Kf5 {[%emt 0:00:00]} Bd8 {[%emt 0:00:00]} 45. b4 {[%emt 0:00:00]} Bg5 {[%emt 0:00:00]} 46. a4 {[%emt 0:00:00]} Bd2 {[%emt 0:00:00]} 47. b5 {[%emt 0:00:00]} axb5 {[%emt 0:00:00]} 48. axb5 {[%emt 0:00:00]} Ba5 {[%emt 0:00:00]} 49. Nf4+ {[%emt 0:00:00]} Kh4 {[%emt 0:00:00]} 50. Nd5 {[%emt 0:00:00]} h5 {[%emt 0:00:00]} 51. b6 {[%emt 0:00:00]} Bxb6 {[%emt 0:00:00]} 52. Nxb6 {[%emt 0:00:00]} Kh3 {[%emt 0:00:00]} 53. Nd5 {[%emt 0:00:00]} Kg2 {[%emt 0:00:00]} 54. Nf4+ {[%emt 0:00:00]} Kxf2 {[%emt 0:00:00]} 55. Nxh5 {[%emt 0:00:00]} Ke3 {[%emt 0:00:00]} 56. Nf4 {[%emt 0:00:04] Ke4+} 1-0

[Event "4NCL Div 1 2018-19"]
[Site "Daventry"]
[Date "2018.11.11"]
[Round "2"]
[White "Ciuksyte, Dagne"]
[Black "Adams, Philip"]
[Result "*"]
[ECO "B33"]
[WhiteElo "2303"]
[BlackElo "2095"]
[Annotator "NA"]
[PlyCount "41"]
[EventDate "2018.11.10"]
[EventType "team-tourn"]
[EventCountry "GBR"]
[SourceTitle "playchess.com"]
[Source "ChessBase"]
[SourceQuality "1"]
[TimeControl "40/6000+30:3000+30"]

1. e4 {[%emt 0:00:00]} c5 {[%emt 0:00:00]} 2. Nf3 {[%emt 0:00:30]} Nc6 {[%emt 0:00:30]} 3. d4 {[%emt 0:00:30]} cxd4 {[%emt 0:00:30]} 4. Nxd4 {[%emt 0:00:30]} Nf6 {[%emt 0:00:30]} 5. Nc3 {[%emt 0:00:30]} e5 {[%emt 0:00:30]} 6. Ndb5 {[%emt 0:00:30]} d6 {[%emt 0:00:30]} 7. Bg5 {[%emt 0:00:30]} a6 {[%emt 0:00:30]} 8. Bxf6 {[%emt 0:00:30]} gxf6 {[%emt 0:00:30]} 9. Na3 {[%emt 0:00:30]} b5 {[%emt 0:00:30]} 10. Nd5 {[%emt 0:00:30]} f5 {[%emt 0:00:30]} 11. exf5 {[%emt 0:00:30]} Bxf5 {[%emt 0:00:30]} 12. c3 {[%emt 0:00:30]} Bg7 {[%emt 0:00:30]} 13. Nc2 {[%emt 0:00:30]} Be6 {[%emt 0:00:30]} 14. Nce3 {[%emt 0:00:30]} Ne7 {[%emt 0:00:30]} 15. g3 {[%emt 0:00:30]} Nxd5 {[%emt 0:00:30]} 16. Nxd5 {[%emt 0:00:30]} O-O {[%emt 0:00:30]} 17. Bg2 {[%emt 0:00:30]} a5 {[%emt 0:00:30]} 18. O-O {[%emt 0:00:30]} Rb8 {[%emt 0:00:30]} 19. Qh5 {[%emt 0:00:30]} f5 {[%emt 0:00:30]} 20. Rad1 {[%emt 0:00:30]} Qd7 {[%emt 0:00:30]} 21. Rd2 {[%emt 0:00:30]} *

[Event "4NCL Div 1 2018-19"]
[Site "Daventry"]
[Date "2018.11.11"]
[Round "2"]
[White "Berry, Neil"]
[Black "Blackburn, Jonathan L B"]
[Result "1/2-1/2"]
[ECO "A62"]
[WhiteElo "2274"]
[BlackElo "2212"]
[Annotator "NA"]
[PlyCount "44"]
[EventDate "2018.11.10"]
[EventType "team-tourn"]
[EventCountry "GBR"]
[SourceTitle "playchess.com"]
[Source "ChessBase"]
[SourceQuality "1"]
[TimeControl "40/6000+30:3000+30"]

1. d4 {[%emt 0:00:00]} e6 {[%emt 0:07:13]} 2. c4 {[%emt 0:00:07]} Nf6 {[%emt 0:00:44]} 3. g3 {[%emt 0:01:05]} c5 {[%emt 0:01:15]} 4. d5 {[%emt 0:00:31]} exd5 {[%emt 0:00:10]} 5. cxd5 {[%emt 0:00:07]} d6 {[%emt 0:00:07]} 6. Nc3 {[%emt 0:00:21]} g6 {[%emt 0:00:09]} 7. Bg2 {[%emt 0:00:11]} Bg7 {[%emt 0:00:04]} 8. Nf3 {[%emt 0:00:06]} O-O {[%emt 0:00:07]} 9. O-O {[%emt 0:00:05]} Re8 {[%emt 0:00:52]} 10. Bf4 {[%emt 0:00:48]} a6 {[%emt 0:01:47]} 11. a4 {[%emt 0:00:25]} Bf5 {[%emt 0:01:13]} 12. Nh4 {[%emt 0:10:17]} Bg4 {[%emt 0:00:48]} 13. h3 {[%emt 0:08:50]} Nh5 {[%emt 0:04:55]} 14. Bxd6 {[%emt 0:08:13]} Bxe2 15. Nxe2 {[%emt 0:05:39]} Qxd6 16. Nf3 {[%emt 0:10:46]} Nd7 {[%emt 0:07:51]} 17. Nc3 {[%emt 0:02:58]} b5 18. axb5 {[%emt 0:12:48]} axb5 19. Nxb5 {[%emt 0:03:53]} Qb6 {[%emt 0:21:47]} 20. Rxa8 {[%emt 0:01:34]} Rxa8 21. Na3 {[%emt 0:00:39]} Qxb2 22. Nc4 {[%emt 0:05:45]} Qc3 {[%emt 0:18:14]} 1/2-1/2

[Event "4NCL Div 1 2018-19"]
[Site "Daventry"]
[Date "2018.11.11"]
[Round "2"]
[White "Stork, Oliver"]
[Black "Dargan, Paul A G"]
[Result "1/2-1/2"]
[WhiteElo "2197"]
[BlackElo "2207"]
[Annotator "NA"]
[PlyCount "20"]
[EventDate "2018.11.10"]
[EventType "team-tourn"]
[EventCountry "GBR"]
[SourceTitle "playchess.com"]
[Source "ChessBase"]
[SourceQuality "1"]
[TimeControl "40/6000+30:3000+30"]

1. c4 {[%emt 0:00:00]} e5 {[%emt 0:00:00]} 2. g3 {[%emt 0:00:00]} Nc6 {[%emt 0:00:00]} 3. Bg2 {[%emt 0:00:00]} f5 {[%emt 0:00:25]} 4. Nc3 {[%emt 0:00:00]} Nf6 {[%emt 0:00:07]} 5. e3 {[%emt 0:00:06]} d5 {[%emt 0:01:25]} 6. cxd5 {[%emt 0:00:10]} Nb4 {[%emt 0:00:06]} 7. d3 {[%emt 0:00:07]} Nfxd5 {[%emt 0:00:22]} 8. Nxd5 {[%emt 0:00:08]} Nxd5 {[%emt 0:00:04]} 9. Nf3 {[%emt 0:00:08]} Bd6 {[%emt 0:00:06]} 10. O-O {[%emt 0:00:19]} Qe7 {[%emt 0:00:08]} 1/2-1/2

[Event "4NCL Div 1 2018-19"]
[Site "Daventry"]
[Date "2018.11.11"]
[Round "2"]
[White "Maciol, Ryszard"]
[Black "Seger, Ruediger"]
[Result "0-1"]
[ECO "D87"]
[WhiteElo "2120"]
[BlackElo "2349"]
[Annotator "NA"]
[PlyCount "48"]
[EventDate "2018.11.10"]
[EventType "team-tourn"]
[EventCountry "GBR"]
[SourceTitle "playchess.com"]
[Source "ChessBase"]
[SourceQuality "1"]
[TimeControl "40/6000+30:3000+30"]

1. d4 {[%emt 0:01:15]} Nf6 {[%emt 0:00:00]} 2. c4 {[%emt 0:09:24]} g6 {[%emt 0:00:04]} 3. Nc3 {[%emt 0:00:31]} d5 {[%emt 0:00:15]} 4. cxd5 {[%emt 0:00:20]} Nxd5 {[%emt 0:00:06]} 5. e4 {[%emt 0:00:22]} Nxc3 {[%emt 0:00:07]} 6. bxc3 {[%emt 0:00:06]} Bg7 {[%emt 0:00:08]} 7. Bc4 {[%emt 0:00:53]} c5 {[%emt 0:00:26]} 8. Ne2 {[%emt 0:00:51]} Nc6 {[%emt 0:00:48]} 9. Be3 {[%emt 0:00:29]} O-O {[%emt 0:03:47]} 10. Rc1 {[%emt 0:00:48]} cxd4 {[%emt 0:03:04]} 11. cxd4 {[%emt 0:01:02]} Qa5+ {[%emt 0:00:41]} 12. Kf1 {[%emt 0:00:19]} Qa3 {[%emt 0:01:43]} 13. Qb3 {[%emt 0:01:56]} Qd6 {[%emt 0:01:54]} 14. e5 {[%emt 0:01:09]} Qd8 {[%emt 0:01:33]} 15. Qb2 {[%emt 0:02:24]} Na5 {[%emt 0:19:03]} 16. Bb3 {[%emt 0:03:41]} Nxb3 {[%emt 0:00:25]} 17. axb3 {[%emt 0:00:04]} f6 {[%emt 0:05:36]} 18. h4 {[%emt 0:05:35]} fxe5 {[%emt 0:04:52]} 19. dxe5 {[%emt 0:00:16]} Qd5 {[%emt 0:05:57]} 20. Bd4 {[%emt 0:01:51]} Bg4 {[%emt 0:01:37]} 21. f3 {[%emt 0:07:55]} Bxf3 {[%emt 0:01:51]} 22. gxf3 {[%emt 0:00:05]} Qxf3+ {[%emt 0:00:07]} 23. Kg1 {[%emt 0:00:22]} Qg4+ {[%emt 0:00:14]} 24. Kh2 {[%emt 0:01:49]} Bxe5+ {[%emt 0:02:01]} 0-1

[Event "4NCL Div 1 2018-19"]
[Site "Daventry"]
[Date "2018.11.11"]
[Round "2"]
[White "Yurenok, Maria S"]
[Black "Dong, Bao Nghia"]
[Result "0-1"]
[ECO "A48"]
[WhiteElo "2005"]
[BlackElo "2144"]
[Annotator "NA"]
[PlyCount "70"]
[EventDate "2018.11.10"]
[EventType "team-tourn"]
[EventCountry "GBR"]
[SourceTitle "playchess.com"]
[Source "ChessBase"]
[SourceQuality "1"]
[TimeControl "40/6000+30:3000+30"]

1. d4 {[%emt 0:00:24]} Nf6 {[%emt 0:00:19]} 2. Nf3 {[%emt 0:00:22]} g6 {[%emt 0:03:10]} 3. Bg5 {[%emt 0:09:08]} Bg7 {[%emt 0:00:23]} 4. Nbd2 {[%emt 0:00:12]} c5 {[%emt 0:00:28]} 5. Bxf6 {[%emt 0:00:38]} Bxf6 {[%emt 0:00:36]} 6. Ne4 {[%emt 0:00:31]} Qb6 {[%emt 0:00:30]} 7. Nxc5 {[%emt 0:21:12]} Qxb2 {[%emt 0:01:51]} 8. e3 {[%emt 0:10:12]} Nc6 {[%emt 0:01:11]} 9. a3 {[%emt 0:27:01]} Qc3+ {[%emt 0:04:39]} 10. Nd2 {[%emt 0:00:49]} d5 {[%emt 0:00:50]} 11. Bd3 {[%emt 0:11:34]} e5 {[%emt 0:00:48]} 12. dxe5 {[%emt 0:06:04]} Nxe5 {[%emt 0:00:52]} 13. Bb5+ {[%emt 0:02:05]} Kf8 {[%emt 0:00:08]} 14. Ncb3 {[%emt 0:02:21]} Nc4 {[%emt 0:00:17]} 15. Ra2 {[%emt 0:07:08]} Bf5 {[%emt 0:08:09]} 16. O-O {[%emt 0:01:30]} Rd8 {[%emt 0:02:28]} 17. Nb1 {[%emt 0:02:35]} Qe5 {[%emt 0:00:06]} 18. Nd4 {[%emt 0:00:22]} Nxe3 {[%emt 0:00:16]} 19. Nf3 {[%emt 0:03:37]} Nxd1 {[%emt 0:01:54]} 20. Nxe5 {[%emt 0:00:05]} Nxf2 {[%emt 0:01:07]} 21. Nxf7 {[%emt 0:01:46]} Nh3+ {[%emt 0:00:11]} 22. Kh1 {[%emt 0:00:51]} Kxf7 {[%emt 0:00:12]} 23. gxh3 {[%emt 0:00:26]} Be4+ {[%emt 0:01:00]} 24. Kg1 {[%emt 0:00:10]} Kg7 {[%emt 0:00:05]} 25. Kf2 {[%emt 0:00:43]} a6 {[%emt 0:01:03]} 26. Bd3 {[%emt 0:00:08]} Bd4+ {[%emt 0:02:18]} 27. Ke2 {[%emt 0:00:27]} Bg2 {[%emt 0:00:09]} 28. Rf4 {[%emt 0:00:49]} Rhe8+ {[%emt 0:00:34]} 29. Kd1 {[%emt 0:00:11]} Be3 {[%emt 0:00:09]} 30. Rb4 {[%emt 0:00:12]} Bf3+ {[%emt 0:00:10]} 31. Be2 {[%emt 0:00:12]} Bxe2+ {[%emt 0:00:10]} 32. Kxe2 {[%emt 0:00:02]} Bc5+ {[%emt 0:00:07]} 33. Kd3 {[%emt 0:00:10]} Bxb4 {[%emt 0:00:13]} 34. axb4 {[%emt 0:00:03]} d4 {[%emt 0:00:14]} 35. Nd2 {[%emt 0:00:49]} Re3+ {[%emt 0:01:55]} 0-1

[Event "4NCL Div 1 2018-19"]
[Site "Daventry"]
[Date "2018.11.11"]
[Round "2"]
[White "Smith, Lynda"]
[Black "Matta, Francesca"]
[Result "1-0"]
[ECO "B26"]
[WhiteElo "1930"]
[BlackElo "1931"]
[Annotator "NA"]
[PlyCount "47"]
[EventDate "2018.11.10"]
[EventType "team-tourn"]
[EventCountry "GBR"]
[SourceTitle "playchess.com"]
[Source "ChessBase"]
[SourceQuality "1"]
[TimeControl "40/6000+30:3000+30"]

1. e4 {[%emt 0:00:00]} c5 {[%emt 0:00:00]} 2. Nc3 {[%emt 0:00:00]} d6 {[%emt 0:00:25]} 3. g3 {[%emt 0:00:00]} Nc6 {[%emt 0:00:13]} 4. Bg2 {[%emt 0:00:00]} g6 {[%emt 0:00:25]} 5. d3 {[%emt 0:00:01]} Bg7 {[%emt 0:00:06]} 6. Be3 {[%emt 0:00:21]} e6 {[%emt 0:00:37]} 7. Qd2 {[%emt 0:00:11]} Nge7 {[%emt 0:01:09]} 8. Bh6 {[%emt 0:00:56]} O-O {[%emt 0:04:29]} 9. h4 {[%emt 0:01:15]} f5 {[%emt 0:33:42]} 10. Bxg7 {[%emt 0:01:47]} Kxg7 {[%emt 0:00:14]} 11. h5 {[%emt 0:01:38]} Qe8 {[%emt 0:06:35]} 12. Nf3 {[%emt 0:03:07]} gxh5 {[%emt 0:06:37]} 13. Nb5 {[%emt 0:02:33]} Qd8 {[%emt 0:11:47]} 14. Qg5+ {[%emt 0:01:55]} Ng6 {[%emt 0:00:48]} 15. Qxh5 {[%emt 0:01:05]} Rh8 {[%emt 0:00:30]} 16. Qh6+ {[%emt 0:01:57]} Kf6 {[%emt 0:05:17]} 17. Ng5 {[%emt 0:03:48]} a6 {[%emt 0:01:41]} 18. Nc3 {[%emt 0:00:54]} Nd4 {[%emt 0:07:54]} 19. O-O-O {[%emt 0:03:09]} Rb8 {[%emt 0:01:45]} 20. Nxh7+ {[%emt 0:03:16]} Kf7 {[%emt 0:00:15]} 21. exf5 {[%emt 0:07:44]} Nxf5 {[%emt 0:03:54]} 22. Ng5+ {[%emt 0:04:30]} Kf6 {[%emt 0:00:36]} 23. Nce4+ {[%emt 0:00:30]} Ke7 {[%emt 0:00:30]} 24. Qxg6 {[%emt 0:00:30]} 1-0